[Event "World Women Teams  Championship"]
[Site "Sitges, Spain"]
[Date "2021.09.27"]
[Round "2.4"]
[White "Dauletova, Gulmira"]
[Black "Javakhishvili, Lela"]
[Result "0-1"]
[TimeControl "40+10"]
[WhiteElo "2184"]
[BlackElo "2364"]

1. e4 {[%clk 00:45:15]} {[%emt 00:00:04]} e5 {[%clk 00:45:15]} {[%emt
00:00:06]} 2. Nf3 {[%clk 00:45:21]} {[%emt 00:00:04]} Nc6 {[%clk 00:45:21]}
{[%emt 00:00:04]} 3. Bb5 {[%clk 00:45:25]} {[%emt 00:00:06]} Nf6 {[%clk
00:45:26]} {[%emt 00:00:05]} 4. d3 {[%clk 00:45:24]} {[%emt 00:00:10]} Bc5
{[%clk 00:45:31]} {[%emt 00:00:06]} 5. c3 {[%clk 00:45:24]} {[%emt 00:00:10]}
d5 {[%clk 00:45:38]} {[%emt 00:00:04]} 6. Qe2 {[%clk 00:43:54]} {[%emt
00:01:39]} O-O {[%clk 00:45:31]} {[%emt 00:00:17]} 7. O-O {[%clk 00:43:28]}
{[%emt 00:00:36]} dxe4 {[%clk 00:45:34]} {[%emt 00:00:07]} 8. dxe4 {[%clk
00:43:31]} {[%emt 00:00:06]} Qe7 {[%clk 00:45:42]} {[%emt 00:00:03]} 9. Nbd2
{[%clk 00:38:52]} {[%emt 00:04:48]} Nd8 {[%clk 00:43:28]} {[%emt 00:02:24]} 10.
b4 {[%clk 00:36:59]} {[%emt 00:02:04]} Bd6 {[%clk 00:41:29]} {[%emt 00:02:09]}
11. Nc4 {[%clk 00:36:17]} {[%emt 00:00:51]} a6 {[%clk 00:41:09]} {[%emt
00:00:31]} 12. Nxd6 {[%clk 00:35:27]} {[%emt 00:00:59]} cxd6 {[%clk 00:41:16]}
{[%emt 00:00:03]} 13. Ba4 {[%clk 00:28:20]} {[%emt 00:07:16]} Bd7 {[%clk
00:38:33]} {[%emt 00:02:53]} 14. Bxd7 {[%clk 00:27:19]} {[%emt 00:01:11]} Nxd7
{[%clk 00:38:35]} {[%emt 00:00:09]} 15. Be3 {[%clk 00:27:03]} {[%emt 00:00:26]}
Rc8 {[%clk 00:38:30]} {[%emt 00:00:15]} 16. c4 {[%clk 00:26:49]} {[%emt
00:00:24]} Nf6 {[%clk 00:37:35]} {[%emt 00:01:05]} 17. Qd3 {[%clk 00:25:51]}
{[%emt 00:01:07]} Ne6 {[%clk 00:36:15]} {[%emt 00:01:31]} 18. Rac1 {[%clk
00:23:28]} {[%emt 00:02:33]} Ng4 {[%clk 00:34:58]} {[%emt 00:01:26]} 19. Rfd1
{[%clk 00:21:10]} {[%emt 00:02:28]} Nxe3 {[%clk 00:34:46]} {[%emt 00:00:23]} 20.
Qxe3 {[%clk 00:18:02]} {[%emt 00:03:18]} Rc6 {[%clk 00:33:40]} {[%emt
00:01:16]} 21. Rc3 {[%clk 00:16:13]} {[%emt 00:01:59]} Rfc8 {[%clk 00:33:18]}
{[%emt 00:00:32]} 22. Rdc1 {[%clk 00:16:19]} {[%emt 00:00:04]} Qc7 {[%clk
00:32:14]} {[%emt 00:01:14]} 23. g3 {[%clk 00:12:56]} {[%emt 00:03:33]} h6
{[%clk 00:31:29]} {[%emt 00:00:55]} 24. a3 {[%clk 00:12:16]} {[%emt 00:00:50]}
b5 {[%clk 00:29:56]} {[%emt 00:01:43]} 25. Nd2 {[%clk 00:11:30]} {[%emt
00:00:55]} Nd4 {[%clk 00:29:09]} {[%emt 00:00:58]} 26. Kg2 {[%clk 00:10:58]}
{[%emt 00:00:42]} Qb7 {[%clk 00:27:20]} {[%emt 00:02:00]} 27. h4 {[%clk
00:07:38]} {[%emt 00:03:30]} R8c7 {[%clk 00:26:43]} {[%emt 00:00:47]} 28. f4
{[%clk 00:03:05]} {[%emt 00:04:43]} bxc4 {[%clk 00:17:36]} {[%emt 00:09:17]} 29.
Rxc4 {[%clk 00:02:59]} {[%emt 00:00:16]} Qb5 {[%clk 00:16:18]} {[%emt
00:01:28]} 30. Rxc6 {[%clk 00:02:31]} {[%emt 00:00:38]} Rxc6 {[%clk 00:16:26]}
{[%emt 00:00:02]} 31. Rxc6 {[%clk 00:02:23]} {[%emt 00:00:18]} Qxc6 {[%clk
00:16:14]} {[%emt 00:00:22]} 32. fxe5 {[%clk 00:00:35]} {[%emt 00:01:58]} dxe5
{[%clk 00:16:19]} {[%emt 00:00:04]} 33. Nf3 {[%clk 00:00:36]} {[%emt 00:00:10]}
Qc2+ {[%clk 00:14:45]} {[%emt 00:01:44]} 34. Kh3 {[%clk 00:00:44]} {[%emt
00:00:02]} Qc4 {[%clk 00:14:20]} {[%emt 00:00:35]} 35. Nd2 {[%clk 00:00:15]}
{[%emt 00:00:39]} Qc1 {[%clk 00:14:07]} {[%emt 00:00:22]} 36. Qd3 {[%clk
00:00:12]} {[%emt 00:00:15]} Qh1+ {[%clk 00:13:43]} {[%emt 00:00:33]} 37. Kg4
{[%clk 00:00:21]} g6 {[%clk 00:13:50]} {[%emt 00:00:04]} 38. Qf1 {[%clk
00:00:14]} {[%emt 00:00:17]} h5+ {[%clk 00:13:25]} {[%emt 00:00:35]} 39. Kg5
{[%clk 00:00:22]} {[%emt 00:00:03]} Qxf1 40. Nxf1 {[%clk 00:00:30]} Kg7 {[%clk
00:13:42]} 0-1

[Event "World Women Teams  Championship"]
[Site "Sitges, Spain"]
[Date "2021.09.27"]
[Round "2.5"]
[White "Cori T., Deysi"]
[Black "Muzychuk, Anna"]
[Result "0-1"]
[TimeControl "40+10"]
[WhiteElo "2340"]
[BlackElo "2537"]

1. Nf3 {[%clk 00:45:15]} Nf6 {[%clk 00:45:10]} 2. d4 {[%clk 00:45:15]} g6
{[%clk 00:45:10]} 3. Bg5 {[%clk 00:45:15]} Bg7 {[%clk 00:45:10]} 4. Nbd2 {[%clk
00:45:15]} d5 {[%clk 00:45:10]} 5. c4 {[%clk 00:45:15]} Ne4 {[%clk 00:45:10]} 6.
Bh4 {[%clk 00:24:40]} {[%emt 43:58:55]} c5 {[%clk 00:36:22]} 7. cxd5 {[%clk
00:13:43]} {[%emt 00:13:13]} Nxd2 {[%clk 00:35:38]} 8. Qxd2 {[%clk 00:13:43]}
cxd4 {[%clk 00:35:38]} 9. Qb4 {[%clk 00:09:12]} {[%emt 00:08:00]} Na6 {[%clk
00:31:06]} 10. Qa3 {[%clk 00:09:12]} O-O {[%clk 00:31:06]} 11. d6 {[%clk
00:07:01]} {[%emt 00:09:13]} Qxd6 {[%clk 00:26:36]} 12. Qxd6 {[%clk 00:06:42]}
{[%emt 00:01:15]} exd6 {[%clk 00:26:44]} 13. Rd1 {[%clk 00:05:17]} {[%emt
00:01:36]} Be6 {[%clk 00:25:03]} 14. Nxd4 {[%clk 00:05:17]} Bxa2 {[%clk
00:25:03]} 15. e3 {[%clk 00:05:19]} {[%emt 00:02:24]} Nb4 {[%clk 00:24:35]} 16.
Be7 {[%clk 00:05:19]} Rfc8 {[%clk 00:24:35]} 17. Bxd6 {[%clk 00:04:09]} {[%emt
00:04:10]} Bxd4 {[%clk 00:14:41]} 18. exd4 {[%clk 00:04:07]} {[%emt 00:08:19]}
Rc2 {[%clk 00:13:58]} 19. Bb5 {[%clk 00:04:07]} Rxb2 {[%clk 00:13:58]} 20. O-O
{[%clk 00:04:07]} Nd5 {[%clk 00:13:58]} 21. Bd3 {[%clk 00:02:21]} {[%emt
00:05:03]} Rd8 {[%clk 00:11:38]} 22. Bg3 {[%clk 00:02:21]} b5 {[%clk 00:11:38]}
23. Rfe1 {[%clk 00:02:21]} b4 {[%clk 00:11:38]} 24. Rc1 {[%clk 00:02:21]} Rd2
{[%clk 00:11:38]} 25. Ba6 {[%clk 00:02:21]} b3 {[%clk 00:11:38]} 26. Bh4 {[%clk
00:02:21]} f6 {[%clk 00:11:38]} 27. Bb7 {[%clk 00:02:21]} b2 {[%clk 00:11:38]}
28. Bxd5+ {[%clk 00:02:21]} Rxd5 {[%clk 00:03:58]} {[%emt 00:12:49]} 29. Rc8+
{[%clk 00:00:37]} {[%emt 00:00:01]} Kg7 {[%clk 00:03:56]} {[%emt 00:00:12]} 30.
Rc7+ {[%clk 00:00:33]} {[%emt 00:00:13]} Kh6 {[%clk 00:03:56]} {[%emt
00:00:11]} 31. Bxf6 {[%clk 00:00:16]} {[%emt 00:00:27]} b1=Q {[%clk 00:03:53]}
{[%emt 00:00:12]} 32. Rxb1 {[%clk 00:00:25]} {[%emt 00:00:01]} Bxb1 {[%clk
00:04:00]} {[%emt 00:00:03]} 33. h4 {[%clk 00:00:32]} {[%emt 00:00:03]} g5
{[%clk 00:00:31]} {[%emt 00:03:40]} 34. hxg5+ {[%clk 00:00:40]} {[%emt
00:00:02]} Kh5 {[%clk 00:00:34]} {[%emt 00:00:05]} 35. f3 {[%clk 00:00:20]}
{[%emt 00:00:31]} Bg6 {[%clk 00:00:36]} {[%emt 00:00:08]} 36. Kh2 {[%clk
00:00:13]} {[%emt 00:00:17]} Kh4 {[%clk 00:00:19]} {[%emt 00:00:28]} 37. Rxa7
{[%clk 00:00:13]} {[%emt 00:00:10]} Rf5 {[%clk 00:00:14]} {[%emt 00:00:15]} 38.
d5 {[%clk 00:00:12]} {[%emt 00:00:10]} Rxf3 {[%clk 00:00:17]} {[%emt 00:00:07]}
39. Ra4+ {[%clk 00:00:13]} {[%emt 00:00:09]} Kh5 {[%clk 00:00:26]} {[%emt
00:00:01]} 40. Rc4 {[%clk 00:00:11]} {[%emt 00:00:13]} Re3 {[%clk 00:00:21]}
{[%emt 00:00:13]} 41. Rf4 {[%clk 00:00:17]} {[%emt 00:00:06]} Be4 {[%clk
00:00:16]} {[%emt 00:00:15]} 0-1

[Event "World Women Teams  Championship"]
[Site "Sitges, Spain"]
[Date "2021.09.27"]
[Round "2.6"]
[White "Muzychuk, Mariya"]
[Black "Lujan, Carolina"]
[Result "1-0"]
[TimeControl "40+10"]
[WhiteElo "2496"]
[BlackElo "2375"]

1. e4 {[%clk 00:45:17]} c5 {[%clk 00:45:17]} 2. Nf3 {[%clk 00:45:17]} Nc6
{[%clk 00:45:17]} 3. Bb5 {[%clk 00:45:17]} e6 {[%clk 00:45:17]} 4. O-O {[%clk
00:45:17]} Nge7 {[%clk 00:45:17]} 5. d4 {[%clk 00:45:17]} cxd4 {[%clk
00:45:17]} 6. Nxd4 {[%clk 00:45:17]} Ng6 {[%clk 00:45:17]} 7. Be3 {[%clk
00:45:17]} Be7 {[%clk 00:45:17]} 8. Be2 {[%clk 00:45:17]} d6 {[%clk 00:45:17]}
9. c4 {[%clk 00:45:17]} O-O {[%clk 00:45:17]} 10. Nc3 {[%clk 00:45:17]} Nxd4
{[%clk 00:45:17]} 11. Qxd4 {[%clk 00:45:17]} b6 {[%clk 00:45:17]} 12. Qd2
{[%clk 00:45:17]} Bb7 {[%emt 00:53:12]} 13. f4 {[%emt 00:00:26]} Rc8 {[%emt
00:01:14]} 14. b3 {[%emt 00:05:10]} Bf6 {[%emt 00:03:52]} 15. f5 {[%emt
00:01:07]} Ne5 {[%emt 00:00:27]} 16. Rad1 {[%emt 00:05:15]} Re8 {[%emt
00:04:24]} 17. Nb5 {[%clk 00:27:52]} Be7 {[%emt 00:05:51]} 18. fxe6 {[%clk
00:25:50]} {[%emt 00:00:03]} fxe6 {[%emt 00:00:21]} 19. Bf4 {[%emt 00:02:41]}
Nf7 {[%emt 00:00:41]} 20. Bg4 {[%emt 00:08:11]} Bf8 {[%emt 00:05:56]} 21. Qd3
{[%emt 00:00:16]} Qh4 {[%emt 00:00:09]} 22. h3 {[%emt 00:01:04]} Ne5 {[%emt
00:04:17]} 23. Bxe5 {[%clk 00:13:49]} {[%emt 00:00:27]} dxe5 {[%emt 00:00:29]}
24. Rxf8+ {[%clk 00:13:14]} {[%emt 00:00:17]} Rxf8 {[%clk 00:00:45]} {[%emt
00:00:17]} 25. Bxe6+ {[%emt 00:00:28]} Kh8 26. Bxc8 {[%emt 00:00:36]} Qf2+
{[%emt 00:00:53]} 27. Kh2 {[%clk 00:11:25]} {[%emt 00:01:13]} Bxc8 {[%emt
00:03:22]} 28. a4 {[%clk 00:08:01]} {[%emt 00:00:12]} h6 {[%emt 00:01:48]} 29.
Qg3 {[%clk 00:06:05]} {[%emt 00:00:24]} Qe2 {[%clk 00:00:16]} {[%emt 00:00:19]}
30. Rd5 {[%clk 00:05:01]} {[%emt 00:01:14]} Qxe4 {[%clk 00:00:24]} {[%emt
00:00:03]} 31. Rxe5 {[%clk 00:04:49]} {[%emt 00:00:22]} Qc2 {[%emt 00:00:18]}
32. Re7 {[%clk 00:04:38]} {[%emt 00:00:08]} Qb2 {[%emt 00:00:24]} 33. Rxa7
{[%clk 00:04:02]} {[%emt 00:00:22]} Bf5 {[%clk 00:00:38]} {[%emt 00:00:10]} 34.
Nc3 {[%clk 00:03:45]} {[%emt 00:00:28]} Rg8 {[%clk 00:00:41]} {[%emt 00:00:07]}
35. Nd5 {[%clk 00:03:47]} {[%emt 00:00:07]} Be4 {[%emt 00:01:15]} 36. Nf4
{[%clk 00:02:23]} {[%emt 00:00:27]} Bc2 {[%emt 00:02:29]} 37. Rb7 {[%clk
00:00:29]} {[%emt 00:00:17]} Qxb3 {[%clk 00:00:16]} {[%emt 00:00:07]} 38. Qxb3
{[%clk 00:00:24]} {[%emt 00:00:14]} Bxb3 {[%clk 00:00:25]} 39. c5 {[%emt
00:00:12]} Bxa4 {[%clk 00:00:28]} {[%emt 00:00:03]} 40. cxb6 {[%clk 00:00:36]}
{[%emt 00:00:01]} Rd8 {[%clk 00:00:11]} {[%emt 00:00:26]} 41. Ne6 {[%clk
00:00:20]} {[%emt 00:00:26]} Rd2 {[%clk 00:00:13]} {[%emt 00:00:08]} 42. Rb8+
{[%clk 00:00:19]} {[%emt 00:00:11]} Kh7 {[%clk 00:00:23]} 43. Nf8+ {[%clk
00:00:19]} {[%emt 00:00:10]} Kg8 {[%clk 00:00:29]} {[%emt 00:00:04]} 44. Ng6+
{[%clk 00:00:23]} {[%emt 00:00:06]} Kf7 {[%clk 00:00:33]} {[%emt 00:00:07]} 45.
Ne5+ {[%clk 00:00:29]} {[%emt 00:00:05]} Ke6 {[%emt 00:00:10]} 46. Nc4 {[%clk
00:00:34]} {[%emt 00:00:04]} Rc2 {[%clk 00:00:23]} {[%emt 00:00:20]} 47. b7
{[%clk 00:00:25]} {[%emt 00:00:19]} Rxc4 {[%emt 00:00:01]} 48. Rc8 {[%clk
00:00:21]} {[%emt 00:00:13]} Rb4 {[%clk 00:00:31]} {[%emt 00:00:12]} 49. b8=Q
{[%clk 00:00:29]} {[%emt 00:00:01]} Rxb8 {[%clk 00:00:39]} {[%emt 00:00:02]} 50.
Rxb8 {[%clk 00:00:38]} {[%emt 00:00:01]} Kf7 {[%clk 00:00:29]} {[%emt
00:00:20]} 51. Rb6 {[%clk 00:00:39]} {[%emt 00:00:09]} Bc2 {[%clk 00:00:29]}
{[%emt 00:00:10]} 52. g4 {[%clk 00:00:44]} {[%emt 00:00:06]} Be4 {[%clk
00:00:27]} {[%emt 00:00:12]} 53. Kg3 {[%clk 00:00:52]} {[%emt 00:00:02]} Bd3
{[%clk 00:00:15]} {[%emt 00:00:21]} 54. Kf4 {[%clk 00:00:54]} {[%emt 00:00:07]}
Bc2 {[%clk 00:00:13]} {[%emt 00:00:13]} 55. h4 {[%clk 00:01:00]} {[%emt
00:00:04]} Bd3 {[%clk 00:00:16]} {[%emt 00:00:07]} 56. Rb7+ {[%clk 00:00:51]}
{[%emt 00:00:19]} Kg6 {[%clk 00:00:14]} {[%emt 00:00:12]} 57. Ke5 {[%clk
00:00:45]} {[%emt 00:00:16]} Be2 {[%clk 00:00:19]} {[%emt 00:00:05]} 58. h5+
{[%clk 00:00:19]} {[%emt 00:00:36]} Kh7 {[%clk 00:00:28]} 59. Rb4 {[%clk
00:00:28]} {[%emt 00:00:01]} Bd1 {[%clk 00:00:34]} {[%emt 00:00:03]} 60. Ke6
{[%clk 00:00:35]} {[%emt 00:00:03]} Kg8 {[%clk 00:00:15]} {[%emt 00:00:29]} 61.
Ke7 {[%clk 00:00:41]} {[%emt 00:00:04]} Be2 {[%clk 00:00:18]} {[%emt 00:00:07]}
62. Rd4 {[%clk 00:00:29]} {[%emt 00:00:22]} Bf3 {[%clk 00:00:19]} {[%emt
00:00:09]} 63. Ke6 {[%clk 00:00:37]} {[%emt 00:00:03]} Be2 {[%clk 00:00:23]}
{[%emt 00:00:06]} 64. Rd8+ {[%clk 00:00:44]} {[%emt 00:00:02]} Kh7 {[%clk
00:00:33]} 65. Kf5 {[%clk 00:00:42]} {[%emt 00:00:13]} Bf3 {[%clk 00:00:39]}
{[%emt 00:00:03]} 66. Rd2 {[%clk 00:00:33]} {[%emt 00:00:19]} Kg8 {[%clk
00:00:25]} {[%emt 00:00:24]} 67. Rf2 {[%clk 00:00:21]} {[%emt 00:00:22]} Bd1
{[%clk 00:00:28]} {[%emt 00:00:08]} 68. Kg6 {[%clk 00:00:15]} {[%emt 00:00:15]}
Ba4 {[%emt 00:00:26]} 69. Rb2 {[%clk 00:00:13]} {[%emt 00:00:10]} Be8+ {[%clk
00:00:20]} {[%emt 00:00:04]} 70. Kf5 {[%clk 00:00:22]} {[%emt 00:00:01]} Bd7+
{[%clk 00:00:24]} {[%emt 00:00:06]} 71. Kf4 {[%clk 00:00:32]} {[%emt 00:00:01]}
Bc6 {[%clk 00:00:25]} {[%emt 00:00:09]} 72. Rb4 {[%clk 00:00:23]} {[%emt
00:00:19]} Kh7 {[%clk 00:00:20]} {[%emt 00:00:15]} 73. Ke5 {[%clk 00:00:31]}
{[%emt 00:00:02]} Bf3 {[%clk 00:00:27]} {[%emt 00:00:03]} 74. Ke6 {[%clk
00:00:34]} {[%emt 00:00:07]} Kg8 {[%clk 00:00:22]} {[%emt 00:00:15]} 75. Rb8+
{[%clk 00:00:28]} {[%emt 00:00:15]} Kh7 {[%clk 00:00:31]} {[%emt 00:00:02]} 76.
Kf5 {[%clk 00:00:37]} Be2 {[%clk 00:00:27]} {[%emt 00:00:14]} 77. Rb2 {[%clk
00:00:27]} {[%emt 00:00:19]} Bd1 {[%clk 00:00:25]} {[%emt 00:00:13]} 78. Rf2
{[%clk 00:00:36]} Ba4 {[%clk 00:00:16]} {[%emt 00:00:18]} 79. Ke6 {[%clk
00:00:39]} {[%emt 00:00:07]} Kg8 {[%clk 00:00:15]} {[%emt 00:00:12]} 80. Ke7
{[%clk 00:00:42]} {[%emt 00:00:07]} Bd1 {[%clk 00:00:24]} 81. Rg2 {[%clk
00:00:47]} {[%emt 00:00:05]} Bf3 {[%clk 00:00:29]} {[%emt 00:00:04]} 82. Rg3
{[%clk 00:00:48]} {[%emt 00:00:09]} Bd1 {[%clk 00:00:22]} {[%emt 00:00:18]} 83.
Ke6 {[%clk 00:00:47]} {[%emt 00:00:10]} Be2 {[%clk 00:00:24]} {[%emt 00:00:08]}
84. Kf5 {[%clk 00:00:55]} {[%emt 00:00:02]} Kh7 {[%clk 00:00:20]} {[%emt
00:00:14]} 85. Rh3 {[%clk 00:00:24]} {[%emt 00:00:42]} Ba6 {[%clk 00:00:21]}
{[%emt 00:00:09]} 86. Rh2 {[%clk 00:00:24]} {[%emt 00:00:10]} Bd3+ {[%clk
00:00:28]} {[%emt 00:00:03]} 87. Ke6 {[%clk 00:00:27]} {[%emt 00:00:07]} Kg8
{[%clk 00:00:31]} {[%emt 00:00:07]} 88. Rd2 {[%clk 00:00:33]} {[%emt 00:00:03]}
Bc4+ {[%clk 00:00:14]} {[%emt 00:00:28]} 89. Ke7 {[%clk 00:00:42]} {[%emt
00:00:02]} Bb3 {[%clk 00:00:16]} {[%emt 00:00:08]} 90. Rd8+ {[%clk 00:00:48]}
{[%emt 00:00:04]} Kh7 {[%clk 00:00:25]} 91. Kf8 {[%clk 00:00:46]} {[%emt
00:00:13]} Be6 {[%clk 00:00:26]} {[%emt 00:00:09]} 92. Rd4 {[%clk 00:00:52]}
{[%emt 00:00:04]} Kh8 {[%clk 00:00:13]} {[%emt 00:00:24]} 93. Re4 {[%clk
00:00:54]} {[%emt 00:00:08]} Bd7 {[%clk 00:00:14]} {[%emt 00:00:09]} 94. Kf7
{[%clk 00:00:56]} {[%emt 00:00:08]} Kh7 {[%clk 00:00:18]} {[%emt 00:00:06]} 95.
Rc4 {[%clk 00:00:59]} {[%emt 00:00:06]} Kh8 {[%emt 00:00:19]} 1-0